Cogmind - Beta 17 @@@ ROGUE MODE // 2026.07.14 @ 13:48:46 Player: N.W.L. Result: Destroyed by 7T-M70(R) with Subdweller Beam Cannon Performance ------------- Evolutions (0) 0 Regions Visited (2) 400 Robots Destroyed (36) 180 Value Destroyed (714) 714 Prototype IDs (0) 0 Alien Tech Used (0) 0 Bonus (0) 0 TOTAL SCORE: 1294 Bonus ------- None Cogmind --------- Core Integrity 0/250 Matter 295/300 Energy 105/125 System Corruption 0% Temperature Cool (18) Movement Treading (160) Location -10/Subcaves Parts ------- > --- POWER (1) -------- Light Ion Engine > --- PROPULSION (2) --- Light Treads Spiked Treads > --- UTILITY (2) ------ Small Storage Unit Large Storage Unit > --- WEAPON (2) ------- Subdweller Beam Cannon > --- INVENTORY (15) --- Light Treads Light Treads Light Treads Spiked Treads Huge Storage Unit Hacking Suite Subdweller Machine Gun Subdweller Machine Gun Rocket Launcher Rocket Launcher Subdweller Shrapnel Launcher Subdweller Shrapnel Launcher Mining Laser Multitool Peak State ------------ > --- POWER ------------ Ion Engine > --- PROPULSION ------- Light Treads Spiked Treads > --- UTILITY ---------- Large Storage Unit Seismic Detector > --- WEAPON ----------- Battle Cannon Battle Cannon > --- INVENTORY -------- Light Treads Light Treads Light Treads Spiked Treads Small Storage Unit Huge Storage Unit Hacking Suite Subdweller Machine Gun Subdweller Machine Gun Rocket Launcher Rocket Launcher Mining Laser Multitool [Rating: 12] Favorites ----------- Power Ion Engine Engine Ion Engine Propulsion Light Treads Treads Light Treads Utility Large Storage Unit Device Seismic Detector Storage Large Storage Unit Protection Light Armor Plating Weapon Battle Cannon Energy Gun Small Laser Energy Cannon Subdweller Beam Cannon Ballistic Gun Assault Rifle Ballistic Cannon Battle Cannon Launcher Rocket Launcher Special Weapon Mining Laser Build | -11 -10 -10 ------- Run | Yrd Mat Sub Slots Evolved . | . . . Power . | . . . Propulsion . | . . . Utility . | . . . Weapon . | . . . Parts Attached 22 | 6 8 8 Power 3 | 1 1 1 Engine 3 | 1 1 1 Core . | . . . Reactor . | . . . Propulsion 5 | 2 1 2 Treads 5 | 2 1 2 Leg . | . . . Wheel . | . . . Hover . | . . . Flight . | . . . Utility 5 | 1 3 1 Device 1 | . . 1 Storage 3 | 1 2 . Processor . | . . . Hackware . | . . . Protection 1 | . 1 . Artifact . | . . . Weapon 9 | 2 3 4 Energy Gun 2 | 1 1 . Energy Cannon 1 | . . 1 Ballistic Gun 1 | 1 . . Ballistic Cannon 2 | . . 2 Launcher 2 | . 1 1 Special Weapon 1 | . 1 . Impact Weapon . | . . . Slashing Weapon . | . . . Piercing Weapon . | . . . Special Melee Weapon . | . . . Unidentified Prototypes . | . . . Parts Lost 7 | . 1 6 Power 1 | . . 1 Propulsion . | . . . Utility 2 | . . 2 Weapon 4 | . 1 3 Highest Loss Streak 3 | . 1 3 To Critical Strikes . | . . . Average Backups 12 | 4 10 14 Power . | . . . Propulsion 4 | . 4 4 Utility 3 | 2 3 3 Weapon 4 | 1 2 5 Tool/Special . | . . . Unused Backups 17 | . 3 14 Power . | . . . Propulsion 7 | . 1 6 Utility 3 | . 2 1 Weapon 6 | . . 6 Tool/Special 1 | . . 1 Average Slot Usage (%) 90 | . 90 89 Engine 13 | . 14 13 Treads 28 | . 28 28 Device 2 | . . 4 Storage 14 | . 15 14 Protection 3 | . 3 2 Energy Gun 2 | . 8 . Energy Cannon 5 | . . 8 Ballistic Gun 5 | . 14 . Ballistic Cannon 10 | . . 15 Launcher 2 | . 5 . Peak Build Rating 12 | 6 10 12 Average Rating 9 | 5 7 10 On Entrance 5 | . 6 9 Avg Prop Armor Cover (%) . | . . . Naked Turns . | . . . Heaviest Build 96 | 11 96 37 Greatest Support 40 | 40 40 40 Greatest Overweight (x) 2 | . 2 . Average Overweight (x) . | . . . Largest Inventory Capacity 25 | 8 25 15 Average Capacity 13 | 7 11 15 Most Carried 15 | 6 15 15 Average Carried 12 | 4 10 14 Final Capacity 15 | 8 15 15 Final Carried 15 | 6 15 14 Class Distribution -------------------- 100% | Mutant Dominant Class ---------------- Mutant | -10/Materials Mutant | -10/Subcaves Resources | -11 -10 -10 ----------- Run | Yrd Mat Sub Matter Collected 1064 | 278 241 545 Remotely . | . . . Salvage Created 918 | 88 618 212 Parts 63 | 7 47 9 Haulers Intercepted 2 | . 2 . Recyclers Shooed 3 | . 3 . Parts Field Recycled . | . . . Retrieved Matter . | . . . Parts Self-Destructed 14 | . . 14 Prevented . | . . . Parts Restored . | . . . Kills | -11 -10 -10 ------- Run | Yrd Mat Sub Combat Hostiles Destroyed 22 | . 14 8 Guns 10 | . 10 . Cannons 8 | . . 8 AOE 4 | . 4 . Classes Destroyed 11 | 2 7 2 Worker 1 | . 1 . Builder 3 | . 3 . Tunneler 1 | 1 . . Hauler 2 | . 2 . Recycler 2 | 1 1 . Operator 2 | . 2 . Watcher 3 | . 3 . Swarmer 9 | . 9 . Grunt 5 | . 5 . Sentry 1 | . . 1 Subdweller 7 | . . 7 Best Kill Streak 3 | 1 3 2 Combat Bots Only 3 | . 3 2 Max Kills in Single Turn 2 | 1 2 1 Gunslinging . | . . . Exploded 1 | . 1 . Melee . | . . . Uniques/NPCs Destroyed . | . . . Combat | -11 -10 -10 -------- Run | Yrd Mat Sub Hostile Shots Fired 111 | . 67 44 Missed 33 | . 26 7 Hits 78 | . 41 37 Projectile 78 | . 41 37 AOE 3 | . . 3 Damage Taken 1336 | . 463 873 Core 255 | . 105 150 Absorbed by Shields . | . . . Core Remaining (%) 100 | 100 . . Volleys Fired 135 | 6 72 57 Largest 2 | 2 2 2 Hottest 113 | 60 60 113 Shots Fired 213 | 12 124 77 Gun 124 | 12 111 1 Cannon 65 | . . 65 Launcher 13 | . 13 . Special 11 | . . 11 Kinetic 112 | 6 59 47 Thermal 69 | 6 33 30 Explosive 13 | . 13 . Electromagnetic 19 | . 19 . Robot Hit Streak 13 | 4 9 13 Robot Miss Streak 4 | 4 3 1 Penetration Max . | . . . Secondary Targets 4 | . 4 . Max Gunslinging Chain 1 | . 1 . Shots Hit Robots 122 | 7 73 42 Core Hits 53 | 3 38 12 Critical Kills . | . . . Critical Parts Destroyed . | . . . Critical Strikes 2 | . . 2 Blast 2 | . . 2 Melee Attacks . | . . . Impact . | . . . Slashing . | . . . Piercing . | . . . Sneak Attacks . | . . . Combat Hostiles . | . . . Follow-up Attacks . | . . . Damage Inflicted 2584 | 85 1455 1044 Guns 967 | 85 882 . Cannons 1044 | . . 1044 Explosions 554 | . 554 . Melee . | . . . Ramming 19 | . 19 . Kinetic 1105 | 39 457 609 Thermal 816 | 46 335 435 Explosive 486 | . 486 . Electromagnetic 158 | . 158 . Impact . | . . . Slashing . | . . . Piercing . | . . . Highest Corruption . | . . . Average Corruption . | . . . Corruption Purged . | . . . Corruption Blocked . | . . . Overload Shots . | . . . Overflow Damage 5 | . 5 . Projectiles . | . . . Explosions 5 | . 5 . Melee . | . . . Knockbacks 7 | . 1 6 Impact 1 | . 1 . Kinetic 6 | . . 6 Secondary . | . . . Self-Inflicted Damage 100 | . 100 . Shots 4 | . 4 . Rammed 2 | . 2 . Targets Rammed 3 | . 3 . Kicked . | . . . Crushed 1 | . 1 . Highest Temperature 42 | . 36 42 Average Temperature 19 | . 16 23 Received Heat Transfer 249 | . 78 171 Siege Activations . | . . . Martial Activations . | . . . Shielding Activations . | . . . Robots Disrupted . | . . . Combat Hostiles . | . . . Robots Corrupted . | . . . Combat Hostiles . | . . . Parts Fried 1 | . 1 . Impact Corruptions . | . . . Robots Melted . | . . . Combat Hostiles . | . . . Parts Melted 1 | . . 1 Heat Transferred 1417 | 100 725 592 Parts Sabotaged . | . . . Parts Stolen . | . . . Parts Stripped . | . . . Power Chain Reactions 2 | . 2 . Alert | -11 -10 -10 ------- Run | Yrd Mat Sub Maximum Alert Level . | . . . Low Security (%) 100 | 100 100 . Level 1 . | . . . Level 2 . | . . . Level 3 . | . . . Level 4 . | . . . Level 5 . | . . . High Security . | . . . Max Security . | . . . Peak Influence 147 | 5 147 . Initial . | . . . Average 73 | . 97 . Influence Increases 548 | 10 518 20 Destroy 0b10 Robot/C 300 | . 280 20 Destroy 0b10 Robot/NC 70 | 10 60 . Destroy Leader 60 | . 60 . Disable Machine 15 | . 15 . Destroy Structure 88 | . 88 . Lose Combat Pursuer 15 | . 15 . Influence Decreases 548 | 10 420 118 Entered New Map 48 | . . 48 Time Decay 485 | 10 410 65 Lost Part 15 | . 10 5 Squads Dispatched 2 | . 2 . Investigation . | . . . Extermination . | . . . Reinforcement 2 | . 2 . Assault . | . . . Garrison . | . . . Intercept . | . . . Searches Triggered . | . . . Construction Impeded . | . . . Haulers Reinforced . | . . . Active Scanning Responses . | . . . Cargo Convoy Interrupts . | . . . Stealth | -11 -10 -10 --------- Run | Yrd Mat Sub Distress Signals 2 | . 2 . Communications Jammed . | . . . Distress Signals . | . . . Times Spotted 35 | . 25 10 Peak Tracking Total 5 | . 5 2 Tactical Retreats 1 | . 1 . Traps | -11 -10 -10 ------- Run | Yrd Mat Sub Traps Triggered . | . . . Indirectly . | . . . Trap Hack Attempts . | . . . Triggered . | . . . Disarmed . | . . . Reprogrammed . | . . . Reused . | . . . Traps Extracted . | . . . Installed . | . . . Triggered . | . . . Machines | -11 -10 -10 ---------- Run | Yrd Mat Sub Machines Disabled 1 | . 1 . Max in Single Turn 1 | . 1 . Machines Repaired . | . . . Machines Dismantled . | . . . Machines Sabotaged . | . . . Overloaded Fab Kills . | . . . Hacking | -11 -10 -10 --------- Run | Yrd Mat Sub Machines Accessed . | . . . Terminals . | . . . Fabricators . | . . . Repair Stations . | . . . Recycling Units . | . . . Scanalyzers . | . . . Garrison Access . | . . . Total Hacks . | . . . Successful . | . . . Failed . | . . . Catastrophic . | . . . Database Lockouts . | . . . Manual . | . . . Terminals . | . . . Fabricators . | . . . Repair Stations . | . . . Recycling Units . | . . . Scanalyzers . | . . . Garrison Access . | . . . Terminal Hacks . | . . . Fabricator Hacks . | . . . Repair Station Hacks . | . . . Recycling Unit Hacks . | . . . Scanalyzer . | . . . Garrison Access Hacks . | . . . Unauthorized Hacks . | . . . Terminals . | . . . Fabricators . | . . . Repair Stations . | . . . Recycling Units . | . . . Scanalyzers . | . . . Garrison Access . | . . . Data Cores Recovered . | . . . Used . | . . . Hacking Detections . | . . . Full Trace Events . | . . . Feedback Events . | . . . Feedback Blocked . | . . . Robot Schematics Acquired . | . . . Robots Built . | . . . Authchips . | . . . Time . | . . . Total Robot Build Rating . | . . . Part Schematics Acquired . | . . . Parts Built . | . . . Authchips . | . . . Time . | . . . Total Part Build Rating . | . . . Part Studies Acquired . | . . . Parts Repaired . | . . . Time . | . . . Parts Recycled . | . . . Recycled Matter . | . . . Retrieved Matter . | . . . Retrieved Components . | . . . Parts Scanalyzed . | . . . Part Schematics Acquired . | . . . Parts Damaged . | . . . Bothacking | -11 -10 -10 ------------ Run | Yrd Mat Sub Used RIF Installer . | . . . Robots Hacked . | . . . Non-combat . | . . . Combat . | . . . Robot Hacks Applied . | . . . Relay Couplers Released . | . . . Fabnet Peak Effective % . | . . . Robots Rewired . | . . . Allies Hacked . | . . . Hacks Repelled . | . . . Allies | -11 -10 -10 -------- Run | Yrd Mat Sub Total Allies . | . . . Largest Group . | . . . Highest-Rated Group . | . . . Highest-Rated Ally . | . . . Total Orders . | . . . Ally Attacks . | . . . Total Damage . | . . . Kills . | . . . Allies Corrupted . | . . . Allies Melted . | . . . Intel | -11 -10 -10 ------- Run | Yrd Mat Sub Active Infowar (turns) 551 | . . 551 Seismic 551 | . . 551 Robot Analysis Total . | . . . Derelict Logs Recovered 2 | . . 2 Drone Launches . | . . . Drone Recoveries . | . . . Exploration | -11 -10 -10 ------------- Run | Yrd Mat Sub Turns Passed 3290 | 344 1021 1925 Spaces Moved 1496 | 46 433 1017 Core 2 | 2 . . Treads 1494 | 44 433 1017 Legs . | . . . Wheels . | . . . Hover . | . . . Flight . | . . . Fastest Speed 50 | 50 160 160 Average Speed 162 | 155 169 160 Slowest Speed 320 | 160 320 160 Overloaded Moves . | . . . Propulsion Burnouts . | . . . Robots Hopped . | . . . Potential Cave-ins . | . . . Cave-ins Triggered . | . . . Exploration Rate (%) 43 | 4 76 49 Regions Visited 2 Branch Regions 1 Pre-discovered Areas . | . . . Known Exits Taken . | . . . Unknown Exits Taken 2 | 1 1 . Scrap Searched 5 | . . 5 Spaces Dug . | . . . Terrain Destroyed 98 | . 97 1 Melee . | . . . Projectile 1 | . . 1 AOE 97 | . 97 . Terrain Rammed . | . . . Walls Destroyed . | . . . Machines Disabled . | . . . Actions | -11 -10 -10 --------- Run | Yrd Mat Sub Total 2115 | 304 595 1216 Wait 405 | 241 56 108 Move 1494 | 45 432 1017 Hop . | . . . Pick Up 26 | 6 15 5 Fast Attach 12 | 6 2 4 Attach 6 | . 2 4 Detach 2 | . . 2 Swap 16 | . 5 11 Drop 16 | . 8 8 Fire 135 | 6 72 57 Melee . | . . . Ram . | . . . Kick . | . . . Crush 3 | . 3 . Escape Stasis . | . . . Rewire . | . . . Trap . | . . . Miscellaneous . | . . . Route ------- -11/Scrapyard -10/Materials (discovered 5 exits: [*Mat x2] / [*Min x2] / [*Sub]) -10/Subcaves (discovered 2 exits: [*Mat x2]) History --------- Turn | Location | Event 4 | -11/Scrapyard | Discovered new exit (range 16) 345 | -11/Scrapyard | Entered Materials 346 | -10/Materials | Build established: Mutant 624 | -10/Materials | Discovered new exit (range 15) 834 | -10/Materials | Discovered new exit (range 11) 1051 | -10/Materials | Discovered new exit (range 14) 1312 | -10/Materials | Discovered new exit (range 8) 1313 | -10/Materials | Discovered new exit (range 15) 1366 | -10/Materials | Entered Subcaves 1367 | -10/Subcaves | Approached by a straggling Scientist 1481 | -10/Subcaves | Disturbed a concealed Subdweller 1517 | -10/Subcaves | Core integrity fell below 50% 1581 | -10/Subcaves | Discovered new exit (range 15) 1597 | -10/Subcaves | Learned Materials trap positions 1721 | -10/Subcaves | Shifting Twisted Machinery released Spk. Treads 1725 | -10/Subcaves | Shifting Twisted Machinery released Multitool 1783 | -10/Subcaves | Learned Materials terminal intel 2142 | -10/Subcaves | Shifting Twisted Machinery released Sub. Beam Cannon 2154 | -10/Subcaves | Shifting Twisted Machinery released Sub. Shrapnel Launcher 2391 | -10/Subcaves | Core integrity fell below 20% 2423 | -10/Subcaves | Lost 3 parts (1p1u1w) 3239 | -10/Subcaves | Discovered new exit (range 15) 3291 | -10/Subcaves | Destroyed by 7T-M70(R) with Subdweller Beam Cannon Last Messages --------------- 02400_ 8M-X8D(R) destroyed. 02404_ Acquired Sub. Shrapnel Launcher. 02503_ Acquired Lgt. Ion Engine. 02554_ Acquired 24 matter. 02555_ Subatomizers dissect the Wheel. 02555_ Acquired 8 matter. 02566_ Subatomizers dissect the Wheel. 02613_ Acquired 19 matter. 02621_ Subatomizers dissect the Wheel. 02707_ Searching scrap... 02707_ Found Sub. Optics. 02707_ Found 59 Matter. 02708_ Acquired 59 matter. 03119_ Acquired 6 matter. 03195_ Y-45 Defender destroyed. 03201_ Acquired 12 matter. 03206_ Beam Rifle fries itself beyond repair. 03239_ EXIT=FOUND 03244_ 7T-M70(R): "FNKSAJDH!" 03291_ Battle Cannon destroyed. Map ----- +----------------------------------------------------+ | #### #??## ### ##???????????????? | | ###?# #### ###??# ##?## ##??????????????? | | ?????#???## ##### ##???## ##?????????????? | | ??????????## # # ####?????# #?????????????? | | ???????????## #??####### " ##????????????? | | ???????????# # # #### & #????????????? | | ???????????# ### ## "" #????????????? | | ???????????### ## #" #???????????? | | ???????????#### ## ## " #???????????? | | ???????????# # #### ##? #???????????? | | ???????????# # # #?## #??? #???????????? | | ???????????#### ### #??# ##??????????????????? | | ??????????????# #?# #??# #??????????????????? | | ??????????????# #?#####??## ##??????????????????? | | ??????????????# #?????????# ##??????????????????? | | ??????????????# #????????## ####?##????????????? | | ?????????????## #????????# # ## #????????????? | | ????????????## ##????????# ##????????????? | | ???####????## # #????????# ##% #????????????? | | #### ###### ####????????## #### #????????????? | | ## ##????????????## #?# ##????????????? | | """ ##?????????###### #### #????????????? | | """!# ##??????????# ## #????????????? | | """ ####???????????# #????????????? | | """ ##????????????# ##????????????? | | """ "" #????????????# @ ### ##?????????????? | | ### "" #????????????# R #####??????????????? | | ??# ""== #????????????###### ##????????????????? | | ??#"" =###???????????????### #????????????????? | | ?#"" ##????????????????## ##????????????????? | | #"" ##?????????????????# ##?????????????????? | | ### ???????????????????### #??????????????????? | | ??# #?????????????????????# ###????????????????? | | ??# ??????????????????????# ##???????????????? | | ?? ??????????????????????# #???????????????? | | ? ???????????????????????# ##???????????????? | | ?# ??????????????????????## ###????????????????? | | ?# ??????????????????????# #??????????????????? | | ? ???????????????????????# ##?????????????????? | | ? ???????????????????????# ###???????????????? | | ????????????????????????## #???????????????? | | #???????????????????????#### ##??????????????? | | ????????????????????????# #??????????????? | | ????????????????????????## #??????????????? | | ?????????????????????????#" #??????????????? | | ???????????????????????? #??????????????? | | ?????????????????????? ##" #?????????????? | | ?????????????????????##?? #?????????????? | | ????????????????????????# ######?????????????? | | ????????????????????????# #??????????????????? | +----------------------------------------------------+ Best States ------------- Heat Dissipation 25 Energy Generation 10 Energy Capacity 250 Matter Stores 300 Matter Capacity 300 Sight Range 16 Terrain Scan Density 10 Armor Coverage 150 Evasion (%) 40 Recoil Reduction 2 Item Schematics ----------------- None Robot Schematics ------------------ None Fabricated ------------ Nothing Repaired ---------- Nothing Studied --------- None Alien Tech Used ----------------- None Achievements -------------- None Challenges ------------ None Game ------ Seed WarlordAbsorptionFirepult Manual? 0 Play Time 00:18:47 Cumulative 653.0 hours Start 2026.07.12 @ 19:07:35 End 2026.07.14 @ 13:48:46 Sessions 2 Manual Loads 0 Difficulty Rogue Special Mode None Game No. 257 Rogue 257 Adventurer 0 Explorer 0 Win Type - Total 25 Types 10/3/7/1/0/0/1/2/0/1 Lore% 93 Gallery% 84 Achievement% 71 Wizard Run 0 Options --------- Layout 0 ASCII 0 Keyboard 1 Movement Numpad Keybinds 0 Fullscreen 2 Font 12/Smallcaps Map View 83x54 Zoom Use 0% Tactical HUD 1 Map Filters NONE Filters NONE Steam 1 RUN: cf525fc0-aa48-416f-9e70-a2749eedd445